bitfinex/quotes_ETHUSD_20210701
["timestamp","ask_amount","ask_price","bid_price","bid_amount"]
[1625110182353,0.00935289,2200.8,2200.1,0.06]
[1625110182552,6.82604289,2200.8,2200.2,5.21]
[1625110182652,6.82604289,2200.8,2200.2,0.2]
[1625110182855,6.82604289,2200.8,2200.0,2.918725]
[1625110182955,10.23470289,2200.8,2200.0,2.918725]
[1625110183053,3.41801289,2200.8,2200.0,2.918725]
[1625110183756,3.41801289,2200.8,2200.0,10.380364]
[1625110184009,6.81757,2200.4,2200.0,2.918725]
[1625110184096,3.41801289,2200.8,2200.0,2.918725]
[1625110184097,10.82547615,2200.8,2200.0,2.918725]
[1625110184296,10.82547615,2200.8,2200.1,0.18]
[1625110184395,3.41801289,2200.8,2200.1,0.18]
[1625110185296,3.41801289,2200.8,2200.0,2.918725]
[1625110185396,3.41801289,2200.8,2200.0,10.40722701]
[1625110185597,3.41801289,2200.8,2200.0,2.918725]
[1625110185997,6.8172,2200.5,2200.0,2.918725]
[1625110187349,0.00935289,2200.8,2200.0,2.918725]
[1625110187451,0.00935289,2200.8,2200.0,10.34816337]
[1625110187551,0.00935289,2200.8,2200.1,0.06]
[1625110188159,0.00935289,2200.8,2200.0,2.918725]
[1625110188501,6.81707,2200.6,2200.0,2.918725]
[1625110188944,0.00935289,2200.8,2200.0,2.918725]
[1625110190448,6.82591289,2200.8,2200.0,2.918725]
[1625110190797,6.82591289,2200.8,2200.1,16.95789798]
[1625110191095,6.82591289,2200.8,2200.2,0.08]
[1625110191197,6.82591289,2200.8,2200.2,17.01371639]
[1625110191294,6.82591289,2200.8,2200.2,22.02371639]
[1625110191396,6.82591289,2200.8,2200.3,16.90548544]
[1625110193744,6.81516942,2200.8,2200.3,16.90548544]
[1625110194748,6.81516942,2200.8,2200.6,0.00935289]
[1625110194947,6.81516942,2200.8,2200.6,13.61390739]
[1625110196301,6.81516942,2200.8,2200.6,18.19910739]
[1625110196501,6.81516942,2200.8,2200.7,14.70293808]
[1625110197597,6.89516942,2200.8,2200.7,14.70293808]
[1625110197901,6.81516942,2200.8,2200.7,14.70293808]
[1625110199606,14.30735249,2200.8,2200.7,14.70293808]
[1625110199800,14.46735249,2200.8,2200.7,14.70293808]
[1625110199899,22.46735249,2200.8,2200.7,14.70293808]
[1625110200000,14.97516942,2200.8,2200.7,14.70293808]
[1625110200202,6.97516942,2200.8,2200.7,14.70293808]
[1625110200398,6.81516942,2200.8,2200.7,14.70293808]
[1625110201998,6.81662942,2200.8,2200.7,24.70293808]
[1625110202107,12.4995152,2201.0,2200.8,24.65]
[1625110202219,0.00611989,2201.2,2200.9,9.82015444]
[1625110203274,10.5151,2201.5,2201.0,22.05]
[1625110203371,7.8149,2201.6,2201.1,9.989611]
[1625110203372,1.0,2201.6,2201.1,9.989611]
[1625110203469,0.0071468,2201.8,2201.2,24.65]
[1625110203570,0.0071468,2201.8,2201.3,9.989611]
[1625110203767,0.0071468,2201.8,2201.3,10.089611]
[1625110203965,0.0071468,2201.8,2201.3,18.48582893]
[1625110204065,0.0071468,2201.8,2201.3,10.089611]
[1625110204255,0.0071468,2201.8,2201.4,9.989611]
[1625110204415,0.0071468,2201.8,2201.6,3.6]
[1625110204511,6.8207868,2201.8,2201.6,3.6]
[1625110204614,6.8207868,2201.8,2201.7,9.989611]
[1625110204714,6.8207868,2201.8,2201.7,7.29832564]
[1625110204915,6.8207868,2201.8,2201.6,3.6]
[1625110207957,6.7207868,2201.8,2201.6,3.6]
[1625110208966,6.7207868,2201.8,2201.6,3.6071468]
[1625110209459,9.08486,2202.0,2201.7,17.15]
[1625110210358,6.81364,2201.8,2201.6,3.6071468]
[1625110210460,9.08486,2202.0,2201.6,3.6071468]
[1625110210561,17.0937963,2202.2,2201.6,3.6071468]
[1625110210687,14.76513,2202.3,2201.6,3.6071468]
[1625110210688,11.35853,2202.3,2201.7,23.95]
[1625110210771,0.01072367,2202.4,2201.7,24.11]
[1625110211020,0.01072367,2202.4,2201.8,0.06]
[1625110211122,0.01072367,2202.4,2201.7,23.95]
[1625110211467,6.82271367,2202.4,2201.7,23.95]
[1625110212373,0.01072367,2202.4,2201.7,23.95]
[1625110212575,0.01072367,2202.4,2201.7,30.76141]
[1625110212871,0.01072367,2202.4,2201.7,23.95]
[1625110214213,6.82289367,2202.4,2201.7,23.95]
[1625110214511,6.82289367,2202.4,2201.8,0.14]
[1625110214611,6.82289367,2202.4,2201.7,23.95]
[1625110216124,0.01072367,2202.4,2201.7,23.95]
[1625110216225,20.29082998,2202.7,2201.8,19.3]
[1625110216323,12.62842,2202.7,2202.0,5.01]
[1625110216425,0.01500311,2202.8,2202.0,5.01]
[1625110217228,0.01500311,2202.8,2202.2,0.01072367]
[1625110217426,6.82622311,2202.8,2202.2,0.01072367]
[1625110218061,0.01500311,2202.8,2202.2,0.01072367]
[1625110218426,1.5173,2203.7,2202.4,24.65]
[1625110218427,9.08149,2203.4,2202.4,24.65]
[1625110218519,6.94914,2203.5,2202.5,7.88472442]
[1625110218616,0.01957149,2203.6,2202.6,5.17]
[1625110218723,0.13255238,2203.8,2202.7,39.07251948]
[1625110218819,0.13255238,2203.8,2203.2,3.7]
[1625110218820,6.85,2203.6,2203.2,3.7]
[1625110218922,6.85,2203.6,2203.3,7.56267044]
[1625110219109,6.85,2203.6,2203.4,0.04]
[1625110219213,0.0437154,2203.5,2203.4,0.04]
[1625110219310,0.26515194,2203.9,2203.5,19.35]
[1625110219513,10.30380498,2204.0,2203.5,19.35]
[1625110219613,0.02380498,2204.0,2203.5,19.35]
[1625110219713,0.02380498,2204.0,2203.5,16.66075492]
[1625110220123,0.02380498,2204.0,2203.4,0.05957149]
[1625110220227,0.02380498,2204.0,2203.4,0.01957149]
[1625110221524,0.02380498,2204.0,2203.4,5.02957149]
[1625110221825,6.87699629,2204.4,2203.5,20.6]
[1625110221926,6.87699629,2204.4,2203.5,27.90154187]
[1625110222129,30.2521,2204.7,2203.6,24.65]
[1625110222264,30.2521,2204.7,2203.7,7.82036856]
[1625110222471,0.02854457,2204.6,2203.7,7.82036856]
[1625110222667,5.01,2204.5,2203.7,7.08671594]
[1625110222767,5.01,2204.5,2203.5,7.59286528]
[1625110222869,4.99396309,2204.5,2204.2,0.02699629]
[1625110223169,0.02854457,2204.6,2204.2,0.02699629]
[1625110223267,0.02854457,2204.6,2204.0,0.00688938]
[1625110223570,0.02699629,2204.4,2204.0,0.00688938]
[1625110226627,6.87699629,2204.4,2204.0,0.00688938]
[1625110229949,0.02699629,2204.4,2204.0,0.00688938]
[1625110230071,4.75409629,2204.4,2204.0,0.00688938]
[1625110230151,7.44190862,2204.4,2204.0,0.00688938]
[1625110230251,5.01,2204.2,2204.0,0.00688938]
[1625110230552,11.83781233,2204.1,2203.8,0.02380498]
[1625110230649,11.97781233,2204.1,2203.8,0.02380498]
[1625110230747,11.16,2203.9,2203.8,0.02380498]
[1625110230952,15.31299,2203.9,2203.8,0.02380498]
[1625110231048,23.31299,2203.9,2203.8,0.02380498]
[1625110231149,23.41299,2203.9,2203.8,0.02380498]
[1625110231273,26.10080233,2203.9,2203.8,0.02380498]
[1625110231473,18.10080233,2203.9,2203.8,0.02380498]
[1625110231574,26.10080233,2203.9,2203.8,0.02380498]
[1625110232629,6.3,2203.8,2203.4,0.01957149]
[1625110232726,11.31,2203.8,2203.4,0.01957149]
[1625110232830,0.14,2203.7,2203.4,0.01957149]
[1625110232927,5.19,2203.7,2203.4,0.01957149]
[1625110233025,7.87781233,2203.7,2203.4,0.01957149]
[1625110233424,15.87781233,2203.7,2203.4,0.01957149]
[1625110233572,17.69943111,2203.6,2203.4,1.49e-06]
[1625110233670,27.12700018,2203.5,2203.4,1.49e-06]
[1625110233775,27.26700018,2203.5,2203.4,1.49e-06]
[1625110233868,35.26700018,2203.5,2203.4,1.49e-06]
[1625110233968,44.45230714,2203.5,2203.4,1.49e-06]
[1625110234370,44.65573768,2203.5,2203.4,1.49e-06]
[1625110234669,6.81290851,2203.4,2203.0,0.00704908]
[1625110234769,8.4164122,2203.3,2203.0,0.00704908]
[1625110234869,3.29,2203.2,2203.0,0.00704908]
[1625110234968,16.08856842,2203.1,2202.2,0.01072367]
[1625110235071,5.01,2203.0,2202.2,0.01072367]
[1625110235174,13.13120573,2202.9,2202.2,0.01072367]
[1625110235273,0.01500311,2202.8,2202.2,0.01072367]
[1625110235370,0.13374362,2202.7,2202.2,0.01072367]
[1625110235475,5.30084362,2202.7,2202.2,0.01072367]
[1625110236018,13.19182198,2202.7,2202.2,0.01072367]
[1625110236221,16.59821198,2202.7,2202.2,0.01072367]
[1625110236421,6.81183,2202.5,2202.2,0.01072367]
[1625110236621,0.14,2202.4,2202.2,0.01072367]
[1625110238266,11.96205,2202.4,2202.2,0.01072367]
[1625110238366,5.01,2202.3,2202.2,0.01072367]
[1625110238763,5.09,2202.3,2202.2,0.01072367]
[1625110239262,12.94084684,2202.3,2202.2,0.01072367]
[1625110239364,13.08084684,2202.3,2202.2,0.01072367]
[1625110239468,23.76865917,2202.3,2202.2,0.01072367]
[1625110239565,38.76865917,2202.3,2202.2,0.01072367]
[1625110239668,40.98042682,2202.3,2202.2,0.01072367]
[1625110239769,43.03522682,2202.3,2202.2,0.01072367]
[1625110239874,43.03522682,2202.3,2202.2,3.67e-06]
[1625110239875,45.48832145,2202.3,2202.2,3.67e-06]
[1625110239970,45.48832145,2202.3,2201.6,0.0071468]
[1625110240073,0.27025065,2202.2,2201.6,0.0071468]
[1625110240170,3.4081565,2202.0,2201.6,0.0071468]
[1625110240281,5.01,2201.8,2201.6,0.0071468]
[1625110240374,5.01,2201.7,2201.6,0.0071468]
[1625110240480,15.54699,2201.7,2201.6,0.0071468]
[1625110240678,23.58990596,2201.7,2201.6,0.0071468]
[1625110242619,29.56771829,2201.7,2201.6,0.0071468]
[1625110242719,29.56771829,2201.7,2200.6,0.00935289]
[1625110242720,9.05,2201.6,2200.6,0.00935289]
[1625110242821,12.25200194,2201.5,2200.6,0.00935289]
[1625110242920,17.40200194,2201.5,2200.6,0.00935289]
[1625110243020,0.14,2201.4,2200.6,0.00935289]
[1625110243118,0.21353715,2201.3,2200.6,0.00935289]
[1625110243223,0.12,2201.2,2200.6,0.00935289]
[1625110243421,6.8174,2200.9,2200.6,0.00935289]
[1625110243620,5.01,2200.7,2200.6,0.00935289]
[1625110243727,13.470814,2200.7,2200.6,0.00935289]
[1625110243826,18.752014,2200.7,2200.6,0.00935289]
[1625110244220,6.1,2200.6,2200.0,0.01024189]
[1625110244327,0.15653335,2200.5,2200.0,0.01024189]
[1625110244425,9.15575776,2200.5,2200.0,0.01024189]
[1625110244531,6.81918,2200.3,2200.0,0.01024189]
[1625110244651,8.10792161,2200.2,2200.0,0.01024189]
[1625110244815,8.13413742,2200.1,2200.0,0.01024189]
[1625110245008,8.37413742,2200.1,2200.0,0.01024189]
[1625110245307,0.24,2200.1,2200.0,0.01024189]
[1625110245511,8.30950749,2200.1,2200.0,0.01024189]
[1625110245612,13.31950749,2200.1,2200.0,0.01024189]
[1625110245911,12.0704,2200.1,2200.0,0.01024189]
[1625110246011,20.258974,2200.1,2200.0,0.01024189]
[1625110246411,19.78936668,2200.1,2200.0,0.01024189]
[1625110246812,12.0704,2200.1,2200.0,0.01024189]
[1625110246912,27.75281717,2200.1,2200.0,0.01024189]
[1625110247123,27.86532284,2200.1,2200.0,0.01024189]
[1625110248486,30.55313517,2200.1,2200.0,0.01024189]
[1625110248985,30.57442837,2200.1,2200.0,0.01024189]
[1625110249323,22.870718,2200.1,2200.0,0.01024189]
[1625110249527,28.11285864,2200.1,2200.0,0.01024189]
[1625110249923,21.08605054,2200.1,2200.0,0.01024189]
[1625110250023,20.18290567,2200.1,2200.0,0.01024189]
[1625110250223,28.09552965,2200.1,2200.0,0.01024189]
[1625110250424,20.18290567,2200.1,2200.0,0.01024189]
[1625110251622,20.08290567,2200.1,2200.0,0.01024189]
[1625110252524,12.87273432,2200.0,2198.9,5.84514123]
[1625110252622,0.1346143,2199.9,2198.9,5.84514123]
[1625110252725,12.1051743,2199.9,2198.9,5.84514123]
[1625110252923,12.1051743,2199.9,2198.8,5.01]
[1625110252924,12.81272592,2199.8,2198.8,5.01]
[1625110253028,12.96145695,2199.8,2198.8,5.01]
[1625110253127,0.14,2199.7,2198.6,5.01]
[1625110253225,8.02573015,2199.6,2198.7,5.01]
[1625110253329,7.8202864,2199.6,2198.7,5.01]
[1625110253424,0.14,2199.5,2198.7,5.01]
[1625110253629,0.14,2199.5,2198.5,8.68012422]
[1625110253767,0.14,2199.5,2198.5,1.0]
[1625110253967,0.27463084,2199.5,2198.5,1.0]
[1625110254069,0.27463084,2199.5,2198.4,7.90716035]
[1625110254169,0.14,2199.5,2198.4,7.90716035]
[1625110254672,0.14,2199.5,2198.5,0.06]
[1625110254871,0.14,2199.5,2198.6,5.01]
[1625110255374,0.14,2199.5,2198.6,11.83023]
[1625110255473,0.14,2199.5,2198.7,7.42066719]
[1625110255675,0.14,2199.5,2198.9,5.01]
[1625110255778,0.14,2199.5,2198.7,7.44579465]
[1625110255880,0.14,2199.5,2198.7,5.01]
[1625110256031,4.0485,2199.7,2198.6,11.83023]
[1625110256129,7.69897452,2199.6,2198.6,11.83023]
[1625110256229,7.69897452,2199.6,2198.7,5.01]
[1625110256433,4.0485,2199.7,2198.8,5.01]
[1625110256732,4.0485,2199.7,2198.9,5.01]
[1625110257433,4.0485,2199.7,2198.8,1.0]
[1625110257634,0.14,2199.6,2198.8,1.0]
[1625110257837,6.82179,2199.5,2198.8,1.0]
[1625110258032,7.71281325,2199.4,2198.8,1.0]
[1625110258136,9.55909,2199.5,2198.8,1.0]
[1625110258781,5.01,2199.3,2198.8,1.0]
[1625110259082,7.80719577,2199.2,2198.8,1.0]
[1625110259184,19.70709577,2199.2,2198.8,1.0]
[1625110259287,5.01,2199.0,2198.7,100.0]
[1625110259438,8.03664103,2198.9,2198.7,100.0]
[1625110259535,0.34,2198.9,2198.7,100.0]
[1625110259636,5.01,2198.8,2198.7,100.0]
[1625110259734,12.77254199,2198.8,2198.7,100.0]
[1625110259839,12.91254199,2198.8,2198.7,100.0]
[1625110260134,13.06254199,2198.8,2198.7,100.0]
[1625110260238,13.06254199,2198.8,2198.7,68.9016]
[1625110260336,14.85314199,2198.8,2198.7,68.9016]
[1625110260635,19.70905432,2198.8,2198.7,37.804]
[1625110260737,19.70905432,2198.8,2198.7,13.25792516]
[1625110260838,19.70905432,2198.8,2197.6,6.85943814]
[1625110260839,16.05,2198.7,2197.7,7.84673396]
[1625110260943,9.61660596,2198.6,2197.6,6.85943814]
[1625110261050,6.82621,2198.2,2197.6,6.85943814]
[1625110261141,3.37587117,2198.1,2197.6,6.85943814]
[1625110261238,3.51587117,2198.1,2197.6,6.85943814]
[1625110261347,3.51587117,2198.1,2197.6,0.00943814]
[1625110261439,11.45528734,2198.1,2197.6,0.00943814]
[1625110261538,11.59617443,2198.1,2197.6,0.00943814]
[1625110261637,3.50558709,2198.1,2197.6,0.00943814]
[1625110261738,3.3647,2198.1,2197.6,0.00943814]
[1625110262439,6.82661,2198.0,2197.6,0.00943814]
[1625110262639,8.42036778,2197.9,2197.6,0.00943814]
[1625110262777,0.34,2197.9,2197.6,0.00943814]
[1625110263172,8.44303654,2197.9,2197.6,0.00943814]
[1625110263447,0.08,2197.8,2197.6,0.00943814]
[1625110263645,0.22,2197.8,2197.6,0.00943814]
[1625110264149,0.14,2197.8,2197.6,0.00943814]
[1625110264242,0.14,2197.8,2197.3,0.58411154]
[1625110266188,0.25262396,2197.8,2197.3,0.58411154]
[1625110266492,0.25262396,2197.8,2197.1,5.01]
[1625110266793,0.25262396,2197.8,2196.8,5.01]
[1625110266893,4.11642396,2197.8,2197.0,5.01]
[1625110267096,4.11642396,2197.8,2196.8,5.01]
[1625110267317,4.11642396,2197.8,2196.9,7.88892319]
[1625110267419,4.11642396,2197.8,2196.7,5.01]
[1625110267517,8.17691725,2197.7,2196.6,8.07334657]
[1625110267618,8.08839897,2197.7,2196.6,8.07334657]
[1625110267717,5.01,2197.5,2196.5,13.6767]
[1625110267819,8.02389577,2197.4,2196.5,6.85]
[1625110268023,0.14,2197.3,2196.5,6.85]
[1625110268118,4.5082,2197.3,2196.5,6.85]
[1625110268532,8.17596155,2197.2,2196.5,6.85]
[1625110268625,5.01,2197.0,2196.5,6.85]
[1625110268725,8.46830758,2196.9,2196.5,6.85]
[1625110268819,5.01,2196.7,2196.5,6.8]
[1625110268923,8.9133,2196.7,2196.5,6.8]
[1625110269034,8.9133,2196.7,2196.6,7.73451329]
[1625110269035,3.9033,2196.7,2196.6,7.73451329]
[1625110269121,4.0433,2196.7,2196.4,0.01]
[1625110269320,4.0433,2196.7,2195.6,8.30484406]
[1625110269321,0.04,2196.6,2195.6,8.30484406]
[1625110269537,8.25719148,2196.6,2195.4,8.03083377]
[1625110269637,8.351601,2196.6,2195.4,8.23774864]
[1625110269734,8.351601,2196.6,2195.3,6.85]
[1625110269837,5.01,2196.4,2195.3,6.85]
[1625110269938,8.13385403,2196.3,2195.3,6.85]
[1625110270047,5.29448221,2196.4,2195.3,6.85]
[1625110270139,8.46478638,2196.4,2195.3,6.85]
[1625110270234,8.32030417,2196.4,2195.3,6.85]
[1625110270336,0.14,2196.4,2195.3,6.85]
[1625110270456,8.21834251,2196.4,2195.3,6.85]
[1625110270742,5.01,2196.2,2195.3,6.85]
[1625110270836,8.60076911,2196.1,2195.3,6.85]
[1625110270935,8.74076911,2196.1,2195.3,6.85]
[1625110271037,0.14,2196.1,2195.3,6.85]
[1625110271338,13.08114862,2196.1,2195.3,6.85]
[1625110271438,5.13,2196.0,2195.3,6.85]
[1625110271551,8.73712419,2195.9,2195.0,2.0]
[1625110271639,6.83448,2195.6,2195.0,2.0]
[1625110271793,8.63727451,2195.5,2195.0,2.0]
[1625110271890,8.67727451,2195.5,2195.0,2.0]
[1625110272192,8.67727451,2195.5,2194.8,6.0351]
[1625110272193,8.25,2195.4,2194.8,6.0351]
[1625110272300,8.84365106,2195.3,2194.8,4.4351]
[1625110272394,6.65,2195.1,2193.4,42.028]
[1625110272493,6.65,2195.1,2193.3,17.71683204]
[1625110272494,10.37781707,2195.0,2193.3,17.71683204]
[1625110272590,10.37781707,2195.0,2193.4,6.85]
[1625110272591,0.43638948,2194.9,2193.4,6.85]
[1625110272691,5.01,2194.8,2193.4,6.85]
[1625110272789,0.26863298,2194.7,2193.4,6.85]
[1625110272895,8.06726601,2194.6,2193.4,6.85]
[1625110272997,5.22944977,2194.5,2193.4,6.85]
[1625110273098,5.23792753,2194.5,2193.4,6.85]
[1625110273190,8.6941383,2194.4,2193.4,6.7]
[1625110273397,0.17888114,2194.3,2193.4,6.7]
[1625110273491,0.17888114,2194.3,2192.8,10.2627585]
[1625110273592,0.14,2194.2,2192.6,15.93573098]
[1625110273693,0.29996958,2194.1,2192.6,15.93573098]
[1625110273890,4.21366958,2194.1,2192.6,15.93573098]
[1625110274145,4.21366958,2194.1,2192.6,18.11218473]
[1625110274237,4.21366958,2194.1,2192.6,19.94851362]
[1625110274238,8.01565598,2194.0,2192.6,19.94851362]
[1625110274340,0.22377687,2193.9,2192.7,8.88378404]
[1625110274437,3.92005161,2194.1,2192.6,4.01278264]
[1625110274537,8.03920943,2194.0,2192.4,0.14]
[1625110274640,8.03920943,2194.0,2192.2,0.09]
[1625110274795,0.28788371,2193.3,2192.2,0.09]
[1625110274889,0.19248305,2193.2,2192.2,0.09]
[1625110274992,8.71477196,2193.2,2192.2,0.09]
[1625110275091,8.49231526,2193.2,2192.2,0.09]
[1625110275189,8.49839783,2193.2,2192.2,0.09]
[1625110275293,5.01,2193.0,2192.2,0.09]
[1625110275392,8.90140031,2192.9,2192.2,0.09]
[1625110275491,15.88459031,2192.9,2192.3,4.30698137]
[1625110275592,7.13227356,2192.9,2192.3,4.15698137]
[1625110275693,0.14,2192.9,2192.3,4.15698137]
[1625110275791,0.14,2192.9,2192.3,1.45558859]
[1625110275895,1.2908,2193.0,2192.3,1.45558859]
[1625110276539,1.2908,2193.0,2192.3,1.20558859]
[1625110276641,4.421,2193.3,2192.3,1.20558859]
[1625110276740,0.16601816,2193.5,2192.4,9.05346823]
[1625110276741,0.14821616,2193.5,2192.4,9.05346823]
[1625110276843,0.14,2193.5,2192.4,9.05346823]
[1625110276941,0.14,2193.5,2192.4,0.00622756]
[1625110277042,0.14,2193.5,2192.4,8.40330595]
[1625110277147,13.37502545,2194.1,2192.5,24.75]
[1625110277148,0.14,2194.0,2192.5,24.75]
[1625110277246,0.00795095,2194.1,2192.6,11.45242762]
[1625110277342,0.14,2194.7,2192.6,11.88925937]
[1625110277645,0.14,2194.7,2192.8,5.01]
[1625110277751,0.14,2194.7,2193.6,9.42596475]
[1625110277844,0.14,2195.0,2193.7,5.01]
[1625110277948,0.00752383,2195.5,2193.8,9.17345039]
[1625110278046,0.14,2195.4,2193.8,14.32345039]
[1625110278146,0.14,2195.4,2193.8,9.31345039]
[1625110278242,0.14,2195.4,2194.0,5.01]
[1625110278603,0.14,2195.4,2194.1,8.09305934]
[1625110278775,0.14,2195.4,2193.6,0.0786198]
[1625110278877,0.28961078,2195.3,2193.6,0.00626788]
[1625110278974,0.28961078,2195.3,2193.5,5.02675908]
[1625110278975,9.87859483,2195.3,2193.5,5.02675908]
[1625110279073,9.87859483,2195.3,2193.5,5.01]
[1625110279175,0.14,2195.2,2193.4,5.01]
[1625110279678,9.38717236,2195.1,2193.2,19.31114742]
[1625110279773,0.16800272,2195.0,2193.2,19.31114742]
[1625110279876,0.30800272,2195.0,2193.4,5.01]
[1625110279982,13.90008666,2194.9,2193.4,5.01]
[1625110280075,0.14139634,2194.8,2193.2,9.9763]
[1625110280174,0.14,2194.7,2193.2,9.9763]
[1625110280275,0.15069816,2194.6,2193.2,9.9763]
[1625110280377,0.15069816,2194.6,2193.1,6.85]
[1625110280475,17.58028666,2194.9,2193.1,6.85]
[1625110280476,0.16540954,2194.4,2193.1,6.85]
[1625110280577,12.0,2194.0,2193.1,6.85]
[1625110281396,12.0,2194.0,2193.3,5.01]
[1625110281497,12.0,2194.0,2193.1,6.85]
[1625110281498,7.94861179,2193.9,2193.1,6.85]
[1625110281605,5.01,2193.8,2192.3,1.20558859]
[1625110281701,0.1941962,2193.7,2192.3,1.20558859]
[1625110281798,14.06377951,2193.7,2192.3,1.20558859]
[1625110281898,0.3341962,2193.7,2192.3,10.28639262]
[1625110281998,0.14,2193.7,2192.3,10.28639262]
[1625110282095,0.14,2193.7,2192.3,1.20558859]
[1625110282696,0.12651898,2193.6,2192.3,1.20558859]
[1625110282800,0.19279417,2193.8,2192.3,1.20558859]
[1625110282898,4.3805,2193.6,2192.3,10.22639853]
[1625110283042,4.3805,2193.6,2192.3,10.18262609]
[1625110283144,4.3805,2193.6,2192.3,1.16181615]
[1625110283245,0.15019118,2193.5,2192.3,1.16181615]
[1625110283748,0.15019118,2193.5,2192.3,10.11500879]
[1625110283845,6.8641,2193.6,2192.3,10.11500879]
[1625110284046,6.8641,2193.6,2192.3,1.16181615]
[1625110284245,6.8641,2193.6,2192.4,5.01]
[1625110284346,6.8641,2193.6,2192.3,1.16181615]
[1625110284445,6.8641,2193.6,2192.4,5.01]
[1625110284850,6.8641,2193.6,2192.5,9.07331444]
[1625110284851,4.2405,2193.6,2192.5,9.07331444]
[1625110285001,0.0061622,2193.9,2192.8,9.38400685]
[1625110285200,12.0,2194.0,2193.0,5.01]
[1625110285311,12.0,2194.0,2193.1,9.3561782]
[1625110285409,12.0,2194.0,2193.1,9.4961782]
[1625110285505,12.0,2194.0,2193.3,5.01]
[1625110285704,12.0,2194.0,2193.1,5.15]
[1625110285807,12.0,2194.0,2193.2,8.01510531]
[1625110285905,12.0,2194.0,2193.1,0.14]
[1625110286005,12.0,2194.0,2193.1,8.84722019]
[1625110286107,12.0,2194.0,2193.1,0.14]
[1625110286216,12.0,2194.0,2193.4,9.11547]
[1625110286311,0.11283081,2194.7,2193.5,8.6773278]
[1625110286407,0.11283081,2194.7,2193.7,9.78906773]
[1625110286507,0.11283081,2194.7,2193.7,14.79906773]
[1625110286611,0.11283081,2194.7,2193.8,0.20046643]
[1625110286706,0.11283081,2194.7,2193.9,5.01]
[1625110286908,0.11283081,2194.7,2194.0,0.14]
[1625110287108,0.11283081,2194.7,2194.0,8.04373486]
[1625110287208,0.11283081,2194.7,2193.6,24.75]
[1625110287209,0.11283081,2194.7,2193.7,8.35737675]
[1625110287314,5.06283081,2194.7,2193.8,9.11366]
[1625110287411,0.14,2194.6,2193.8,9.11366]
[1625110287655,0.14,2194.6,2193.9,7.88301153]
[1625110287754,0.14,2194.6,2193.8,9.11366]
[1625110288165,5.06283081,2194.7,2193.8,9.11366]
[1625110288561,11.0,2194.0,2193.8,9.11366]
[1625110289912,0.11283081,2194.7,2193.8,9.11366]
[1625110290113,0.11283081,2194.7,2193.8,12.09530442]
[1625110290211,0.11283081,2194.7,2193.8,10.42266]
[1625110290311,0.11283081,2194.7,2193.9,0.14]
[1625110290411,0.11283081,2194.7,2194.0,5.01]
[1625110290612,0.11283081,2194.7,2194.1,0.14]
[1625110290813,0.11283081,2194.7,2194.0,2.4509999]
[1625110290911,0.11283081,2194.7,2194.1,0.14]
[1625110291416,0.11283081,2194.7,2194.2,6.83419]
[1625110292058,0.14,2195.7,2194.2,6.83419]
[1625110292157,0.14,2195.7,2194.4,5.01]
[1625110292258,0.2961181,2195.8,2194.3,0.14]
[1625110292459,3.5178181,2195.8,2194.3,0.14]
[1625110292659,7.67980374,2195.7,2194.3,0.14]
[1625110292857,3.5178181,2195.8,2194.3,0.14]
[1625110292956,3.5178181,2195.8,2194.7,9.11106]
[1625110293057,3.5178181,2195.8,2194.2,3.88552501]
[1625110293156,0.14,2195.7,2194.2,3.88552501]
[1625110293262,0.14,2195.7,2194.1,14.12226]
[1625110293530,0.14,2195.7,2194.3,5.01]
[1625110293726,7.87512928,2195.7,2194.3,5.01]
[1625110293826,7.87512928,2195.7,2194.1,9.25226]
[1625110294028,7.87512928,2195.7,2194.4,6.83422]
[1625110294396,0.17832879,2195.6,2194.1,9.11226]
[1625110294490,5.09,2195.5,2194.1,9.11226]
[1625110294590,8.82912392,2195.4,2193.8,9.11366]
[1625110294693,0.33861433,2195.3,2193.7,10.8317]
[1625110294792,5.01,2195.2,2193.6,10.5914]
[1625110294891,8.23934874,2195.1,2193.6,10.5914]
[1625110294994,13.79500177,2195.1,2193.4,11.38977]
[1625110295090,13.80140708,2195.1,2193.4,11.38977]
[1625110295191,15.26390708,2195.1,2193.4,11.38977]
[1625110295691,0.08,2195.0,2193.4,11.38977]
[1625110295792,0.32482851,2194.9,2193.4,11.38977]
[1625110295893,0.14,2194.9,2193.4,11.38977]
[1625110296344,0.14,2194.9,2193.8,6.83596]
[1625110296621,13.24549969,2195.1,2193.8,6.83596]
[1625110297075,17.01879969,2195.1,2193.4,11.38977]
[1625110297174,19.1095395,2195.0,2193.4,11.38977]
[1625110297272,8.73023441,2194.9,2193.4,11.38977]
[1625110297372,20.28072065,2194.8,2193.4,11.38977]
[1625110297474,13.68796319,2194.7,2193.3,5.01]
[1625110297572,0.17830101,2194.6,2193.3,5.01]
[1625110297672,0.31830101,2194.6,2193.3,5.01]
[1625110298178,1.89900101,2194.6,2193.3,5.01]
[1625110298275,7.73187214,2194.5,2193.2,6.83766]
[1625110298373,0.18467266,2194.4,2193.2,6.83766]
[1625110298673,0.14,2194.3,2193.2,6.83766]
[1625110298773,0.15896718,2194.2,2193.2,6.83766]
[1625110298917,0.29896718,2194.2,2193.2,6.83766]
[1625110299715,8.05425364,2194.2,2193.2,6.83766]
[1625110299915,8.05425364,2194.2,2193.2,6.73766]
[1625110300019,0.14,2194.2,2193.2,6.73766]
[1625110300516,7.93742241,2194.2,2193.2,6.73766]
[1625110300718,0.14,2194.2,2193.2,6.73766]
[1625110301019,0.14,2194.2,2193.2,6.68766]
[1625110302673,7.90926055,2194.2,2193.2,6.68766]
[1625110302772,12.24236055,2194.2,2193.2,6.68766]
[1625110302872,5.01,2194.0,2193.2,6.58766]
[1625110302970,0.36789405,2194.1,2193.2,6.58766]
[1625110303074,0.18,2194.1,2193.2,6.58766]
[1625110303174,12.10236055,2194.2,2193.2,6.58766]
[1625110303420,4.3331,2194.2,2193.2,6.58766]
[1625110303520,4.2831,2194.2,2193.2,6.58766]